fUSD/lending_fUSD_20260404
["ID","MTS","AMOUNT","RATE_DAILY","PERIOD"]
[419721488,1775334645713,-150.0,0.00015039,2]
[419721489,1775334645722,-2810.0,0.0001504,2]
[419721490,1775334645731,-162.0,0.0001504,2]
[419721491,1775334645741,-150.0,0.00015043,2]
[419721492,1775334645751,-150.0,0.00015049,2]
[419721493,1775334645760,-150.0,0.00015052,2]
[419721494,1775334645770,-150.0,0.00015052,2]
[419721495,1775334645779,-150.0,0.00015058,2]
[419721496,1775334645789,-150.0,0.00015062,2]
[419721497,1775334645799,-150.0,0.00015066,2]
[419721498,1775334645809,-150.0,0.00015067,2]
[419721499,1775334645819,-500.0,0.00015068,2]
[419721500,1775334645828,-500.0,0.00015068,2]
[419721501,1775334645838,-500.96174367,0.00015068,2]
[419721502,1775334645848,-1500.0,0.00015068,2]
[419721503,1775334645857,-1500.0,0.00015068,2]
[419721504,1775334645866,-500.0,0.00015068,2]
[419721505,1775334645876,-1331.51791405,0.00015068,2]
[419721506,1775334645886,-672.69782273,0.00015068,2]
[419721507,1775334645895,-509.76505823,0.00015068,2]
[419721508,1775334645904,-604.51459685,0.00015068,2]
[419721509,1775334645914,-900.0,0.00015068,2]
[419721510,1775334645924,-800.0,0.00015068,2]
[419721511,1775334645934,-150.0,0.00015071,2]
[419721512,1775334645943,-150.0,0.00015075,2]
[419721513,1775334645953,-150.0,0.00015083,2]
[419721514,1775334645962,-150.0,0.00015084,2]
[419721515,1775334645972,-150.0,0.00015085,2]
[419721516,1775334645982,-150.0,0.00015089,2]
[419721517,1775334645991,-150.0,0.0001509,2]
[419721518,1775334646001,-150.0,0.00015095,2]
[419721519,1775334646011,-150.0,0.00015095,2]
[419721520,1775334646020,-150.0,0.00015095,2]
[419721521,1775334646030,-150.0,0.00015098,2]
[419721522,1775334646039,-154.78244338,0.00015101,2]
[419721523,1775334646051,-150.0,0.00015103,2]
[419721524,1775334646060,-150.0,0.00015107,2]
[419721525,1775334646069,-150.0,0.00015113,2]
[419721526,1775334646078,-150.0,0.00015114,2]
[419721527,1775334646087,-150.0,0.00015121,2]
[419721528,1775334646097,-150.0,0.00015121,2]
[419721529,1775334646106,-150.0,0.00015122,2]
[419721530,1775334646115,-150.0,0.0001513,2]
[419721531,1775334646124,-150.0,0.00015136,2]
[419721532,1775334646134,-150.0,0.00015139,2]
[419721533,1775334646144,-193.13194542,0.00015143,2]
[419721534,1775334646153,-150.0,0.00015145,2]
[419721535,1775334646163,-150.0,0.00015145,2]
[419721536,1775334646172,-154.76030198,0.00015148,2]
[419721537,1775334646181,-4773.1139435,0.00015151,2]
[419721538,1775334646190,-150.0,0.00015153,2]
[419721539,1775334646199,-150.0,0.00015154,2]
[419721540,1775334646209,-150.0,0.00015155,2]
[419721541,1775334646219,-150.0,0.00015155,2]
[419721542,1775334646229,-150.0,0.00015157,2]
[419721543,1775334646238,-2304.0,0.00015158,2]
[419721544,1775334646247,-25800.65897705,0.00015159,2]
[419721545,1775334646256,-150.0,0.0001516,2]
[419721546,1775334646266,-150.0,0.00015168,2]
[419721547,1775334646275,-150.0,0.00015175,2]
[419721548,1775334646284,-150.0,0.00015175,2]
[419721549,1775334646294,-150.0,0.00015175,2]
[419721550,1775334646303,-15779.83901405,0.00015179,2]
[419721551,1775334646313,-150.0,0.00015183,2]
[419721552,1775334646323,-150.0,0.00015186,2]
[419721553,1775334646333,-150.0,0.00015191,2]
[419721554,1775334646343,-191.64855881,0.00015192,2]
[419721555,1775334646353,-150.0,0.00015193,2]
[419721556,1775334646363,-150.0,0.00015198,2]
[419721557,1775334646373,-1406.48,0.000152,2]
[419721558,1775334646383,-1121.77,0.000152,2]
[419721559,1775334646392,-261.0,0.000152,2]
[419721560,1775334646402,-177.1231317,0.00015201,2]
[419721561,1775334646412,-10000.0,0.00015205,2]
[419721562,1775334646423,-150.0,0.00015206,2]
[419721563,1775334646432,-150.0,0.00015207,2]
[419721564,1775334646441,-150.0,0.00015211,2]
[419721565,1775334646451,-150.0,0.00015214,2]
[419721566,1775334646460,-150.0,0.00015216,2]
[419721567,1775334646469,-150.0,0.00015216,2]
[419721568,1775334646479,-150.0,0.00015216,2]
[419721569,1775334646488,-150.0,0.00015218,2]
[419721570,1775334646498,-150.0,0.00015221,2]
[419721571,1775334646509,-150.0,0.00015229,2]
[419721572,1775334646519,-150.0,0.0001523,2]
[419721573,1775334646529,-150.0,0.00015237,2]
[419721574,1775334646539,-150.0,0.00015237,2]
[419721575,1775334646548,-150.0,0.00015244,2]
[419721576,1775334646558,-150.0,0.00015248,2]
[419721577,1775334646569,-150.0,0.0001525,2]
[419721578,1775334646580,-150.0,0.00015253,2]
[419721579,1775334646589,-150.0,0.0001526,2]
[419721580,1775334646598,-150.0,0.00015266,2]
[419721581,1775334646607,-150.0,0.00015266,2]
[419721582,1775334646617,-2304.0,0.00015267,2]
[419721583,1775334646627,-150.0,0.00015268,2]
[419721584,1775334646637,-150.0,0.00015276,2]
[419721585,1775334646646,-150.0,0.00015276,2]
[419721586,1775334646655,-150.0,0.00015277,2]
[419721587,1775334646667,-150.0,0.00015282,2]
[419721588,1775334646677,-150.0,0.00015283,2]
[419721589,1775334646687,-150.0,0.00015284,2]
[419721590,1775334646696,-150.0,0.00015289,2]
[419721591,1775334646706,-150.0,0.00015298,2]
[419721592,1775334646715,-150.0,0.000153,2]
[419721593,1775334646724,-2000.0,0.00015301,2]
[419721594,1775334646735,-150.0,0.00015302,2]
[419721595,1775334646744,-150.0,0.00015306,2]
[419721596,1775334646754,-150.0,0.00015312,2]
[419721597,1775334646764,-150.0,0.00015314,2]
[419721598,1775334646774,-150.0,0.0001532,2]
[419721599,1775334646784,-150.0,0.00015324,2]
[419721600,1775334646794,-150.0,0.00015329,2]
[419721601,1775334646805,-150.0,0.00015329,2]
[419721602,1775334646815,-150.0,0.00015335,2]
[419721603,1775334646825,-150.0,0.00015336,2]
[419721604,1775334646835,-150.0,0.00015336,2]
[419721605,1775334646846,-150.0,0.00015336,2]
[419721606,1775334646856,-150.0,0.00015338,2]
[419721607,1775334646866,-1085.21015225,0.00015342,2]
[419721609,1775334646877,-501.15172574,0.00015342,2]
[419721610,1775334646887,-2000.0,0.00015342,2]
[419721611,1775334646898,-2000.0,0.00015342,2]
[419721612,1775334646908,-2000.0,0.00015342,2]
[419721613,1775334646919,-150.0,0.00015346,2]
[419721614,1775334646928,-150.0,0.00015347,2]
[419721615,1775334646939,-150.0,0.00015352,2]
[419721616,1775334646948,-150.0,0.00015356,2]
[419721617,1775334646958,-150.0,0.00015357,2]
[419721618,1775334646968,-162.0,0.0001536,2]
[419721619,1775334646977,-150.0,0.0001536,2]
[419721620,1775334646987,-561.25077082,0.00015364,2]
[419721621,1775334646997,-2500.0,0.00015364,2]
[419721622,1775334647008,-2500.0,0.00015364,2]
[419721623,1775334647018,-150.0,0.00015371,2]
[419721624,1775334647029,-2304.0,0.00015373,2]
[419721625,1775334647039,-150.0,0.00015374,2]
[419721626,1775334647049,-150.0,0.00015375,2]
[419721627,1775334647059,-150.0,0.00015378,2]
[419721628,1775334647069,-150.0,0.0001538,2]
[419721629,1775334647077,-150.0,0.00015385,2]
[419721631,1775334647087,-150.0,0.00015391,2]
[419721632,1775334647097,-150.0,0.00015392,2]
[419721633,1775334647107,-150.0,0.00015394,2]
[419721634,1775334647116,-150.0,0.00015397,2]
[419721635,1775334647125,-150.0,0.00015397,2]
[419721636,1775334647136,-150.0,0.00015399,2]
[419721638,1775334647147,-2000.0,0.00015401,2]
[419721640,1775334647156,-150.0,0.00015403,2]
[419721641,1775334647166,-150.0,0.0001541,2]
[419721642,1775334647177,-150.0,0.0001541,2]
[419721643,1775334647186,-433.0,0.00015416,2]
[419721644,1775334647196,-15779.83901405,0.00015417,2]
[419721645,1775334647206,-25800.65897705,0.00015417,2]
[419721646,1775334647216,-150.0,0.00015417,2]
[419721647,1775334647225,-150.0,0.00015422,2]
[419721648,1775334647235,-150.0,0.00015422,2]
[419721649,1775334647245,-150.0,0.00015426,2]
[419721650,1775334647255,-150.0,0.00015428,2]
[419721651,1775334647264,-238.71,0.00015436,2]
[419721652,1775334647275,-150.0,0.00015441,2]
[419721653,1775334647285,-150.0,0.00015442,2]
[419721654,1775334647294,-150.0,0.00015445,2]
[419721655,1775334647304,-150.0,0.00015446,2]
[419721656,1775334647315,-150.0,0.00015448,2]
[419721657,1775334647326,-150.0,0.00015452,2]
[419721658,1775334647336,-150.0,0.00015457,2]
[419721659,1775334647346,-150.0,0.00015457,2]
[419721660,1775334647356,-150.0,0.00015457,2]
[419721661,1775334647366,-2304.0,0.00015457,2]
[419721662,1775334647376,-203.51997344,0.00015463,2]
[419721663,1775334647386,-150.0,0.00015464,2]
[419721664,1775334647396,-150.0,0.00015464,2]
[419721665,1775334647406,-150.0,0.00015468,2]
[419721666,1775334647415,-150.0,0.00015471,2]
[419721667,1775334647425,-150.0,0.00015474,2]
[419721668,1775334647435,-150.0,0.00015482,2]
[419721669,1775334647445,-150.0,0.00015483,2]
[419721670,1775334647455,-150.0,0.00015488,2]
[419721671,1775334647464,-722.32,0.0001549,2]
[419721672,1775334647474,-427.66291618,0.0001549,2]
[419721673,1775334647484,-2304.0,0.00015491,2]
[419721674,1775334647493,-150.0,0.00015491,2]
[419721675,1775334647504,-150.0,0.00015494,2]
[419721676,1775334647514,-150.0,0.000155,2]
[419721677,1775334647524,-2000.0,0.00015501,2]
[419721678,1775334647534,-150.0,0.00015506,2]
[419721679,1775334647543,-150.0,0.00015511,2]
[419721680,1775334647553,-150.0,0.00015514,2]
[419721681,1775334647563,-150.0,0.00015514,2]
[419721682,1775334647573,-453.15144522,0.00015514,2]
[419721683,1775334647585,-500.0,0.00015515,2]
[419721684,1775334647594,-500.0,0.00015515,2]
[419721685,1775334647605,-500.0,0.00015515,2]
[419721686,1775334647614,-500.0,0.00015515,2]
[419721687,1775334647624,-500.0,0.00015515,2]
[419721688,1775334647634,-500.0,0.00015515,2]
[419721689,1775334647644,-500.0,0.00015515,2]
[419721690,1775334647655,-500.0,0.00015515,2]
[419721691,1775334647664,-500.0,0.00015515,2]
[419721692,1775334647674,-500.0,0.00015515,2]
[419721693,1775334647684,-500.0,0.00015515,2]
[419721694,1775334647694,-500.0,0.00015515,2]
[419721695,1775334647705,-500.0,0.00015515,2]
[419721696,1775334647715,-500.0,0.00015515,2]
[419721697,1775334647725,-500.0,0.00015515,2]
[419721698,1775334647735,-500.0,0.00015515,2]
[419721699,1775334647745,-500.0,0.00015515,2]
[419721700,1775334647757,-500.0,0.00015515,2]
[419721701,1775334647767,-500.0,0.00015515,2]
[419721702,1775334647778,-500.0,0.00015515,2]
[419721703,1775334647787,-500.0,0.00015515,2]
[419721704,1775334647797,-500.0,0.00015515,2]
[419721705,1775334647807,-500.0,0.00015515,2]
[419721706,1775334647816,-500.0,0.00015515,2]
[419721707,1775334647826,-500.0,0.00015515,2]
[419721708,1775334647836,-500.0,0.00015515,2]
[419721709,1775334647846,-500.0,0.00015515,2]
[419721710,1775334647857,-500.0,0.00015515,2]
[419721711,1775334647866,-500.0,0.00015515,2]
[419721712,1775334647876,-500.0,0.00015515,2]
[419721713,1775334647886,-500.0,0.00015515,2]
[419721714,1775334647895,-242.62789815,0.00015515,2]
[419721715,1775334647906,-3469.3931456,0.00015516,2]
[419721716,1775334647917,-4412.620347,0.00015516,2]
[419721717,1775334647927,-15525.87611106,0.00015516,2]
[419721718,1775334648731,-381.56271105,0.00015516,2]
[419721719,1775334648817,-1287.1,0.00015516,2]
[419721720,1775334649848,-12261.14410848,0.00015516,2]
[419721721,1775334649861,-1219.17117707,0.00015516,2]
[419721722,1775334649880,-542.688,0.00015516,2]
[419721723,1775334649892,-616.0,0.00015516,2]
[419721724,1775334649903,-883.15138334,0.00015516,2]
[419721725,1775334649921,-136719.9822796,0.00015516,2]
[419721726,1775334649931,-1313.2651659,0.00015516,2]
[419721727,1775334649940,-136517.10191284,0.00015516,2]
[419721728,1775334649951,-468147.36970586,0.00015516,2]
[419721729,1775334649961,-808.138285,0.00015516,2]
[419721730,1775334649970,-808.138285,0.00015516,2]
[419721731,1775334649979,-808.138285,0.00015516,2]
[419721732,1775334649988,-808.138285,0.00015516,2]
[419721733,1775334649997,-293.55988,0.00015516,2]
[419721734,1775334650007,-293.55988,0.00015516,2]
[419721735,1775334650016,-293.55988,0.00015516,2]
[419721736,1775334650025,-293.55988,0.00015516,2]
[419721737,1775334650034,-150.0,0.00015517,2]
[419721738,1775334650043,-150.0,0.00015517,2]
[419721739,1775334650052,-150.0,0.00015517,2]
[419721740,1775334650062,-150.0,0.00015518,2]
[419721741,1775334650071,-4773.1139435,0.00015525,2]
[419721742,1775334650081,-150.0,0.00015535,2]
[419721743,1775334650090,-150.0,0.00015536,2]
[419721744,1775334650099,-150.0,0.00015537,2]
[419721745,1775334650108,-150.0,0.00015538,2]
[419721746,1775334650119,-150.0,0.00015539,2]
[419721747,1775334650130,-150.0,0.00015545,2]
[419721748,1775334650140,-150.0,0.00015554,2]
[419721749,1775334650148,-150.0,0.00015558,2]
[419721750,1775334650158,-150.0,0.0001556,2]
[419721751,1775334650167,-150.0,0.00015562,2]
[419721752,1775334650177,-24984.01404667,0.0001557,2]
[419721753,1775334650186,-150.0,0.0001557,2]
[419721754,1775334650196,-150.0,0.00015572,2]
[419721755,1775334650208,-150.0,0.00015576,2]
[419721756,1775334650219,-150.0,0.00015578,2]
[419721757,1775334650228,-150.0,0.00015578,2]
[419721758,1775334650238,-150.0,0.00015578,2]
[419721759,1775334650247,-150.0,0.00015581,2]
[419721760,1775334650257,-150.0,0.00015583,2]
[419721761,1775334650266,-150.0,0.00015585,2]
[419721762,1775334650276,-515.0,0.00015588,4]
[419721763,1775334650285,-150.0,0.0001559,2]
[419721764,1775334650295,-2000.0,0.00015601,2]
[419721765,1775334650306,-150.0,0.00015603,2]
[419721766,1775334650315,-150.0,0.00015605,2]
[419721767,1775334650326,-150.0,0.00015606,2]
[419721768,1775334650336,-150.0,0.00015606,2]
[419721769,1775334650346,-150.0,0.00015608,2]
[419721770,1775334650356,-150.0,0.00015608,2]
[419721771,1775334650365,-874.28257311,0.00015616,2]
[419721772,1775334650375,-1003.04138262,0.00015616,2]
[419721773,1775334650384,-150.0,0.0001562,2]
[419721774,1775334650393,-150.0,0.0001562,2]
[419721775,1775334650404,-150.0,0.0001562,2]
[419721776,1775334650415,-150.0,0.0001562,2]
[419721777,1775334650425,-150.0,0.0001562,2]
[419721778,1775334650435,-150.0,0.0001562,2]
[419721779,1775334650445,-176.92215124,0.0001562,2]
[419721780,1775334650454,-150.0,0.0001562,2]
[419721781,1775334650464,-150.0,0.0001562,2]
[419721782,1775334650476,-150.0,0.0001562,2]
[419721783,1775334650486,-150.0,0.00015626,2]
[419721784,1775334650496,-150.0,0.00015628,2]
[419721785,1775334650505,-150.0,0.00015629,2]
[419721786,1775334650515,-150.0,0.0001563,2]
[419721787,1775334650524,-150.0,0.00015635,2]
[419721788,1775334650535,-150.0,0.00015637,2]
[419721789,1775334650544,-150.0,0.00015638,2]
[419721790,1775334650553,-150.0,0.00015638,2]
[419721791,1775334650563,-150.0,0.00015644,2]
[419721792,1775334650573,-150.0,0.00015652,2]
[419721793,1775334650582,-150.0,0.00015652,2]
[419721794,1775334650592,-150.0,0.00015653,2]
[419721795,1775334650602,-150.0,0.00015663,2]
[419721796,1775334650611,-150.0,0.00015667,2]
[419721797,1775334650621,-150.0,0.00015668,2]
[419721798,1775334650631,-150.0,0.00015675,2]
[419721799,1775334650640,-150.0,0.00015676,2]
[419721800,1775334650650,-150.0,0.00015676,2]
[419721801,1775334650660,-150.0,0.00015681,2]
[419721802,1775334650670,-240.20283738,0.00015699,2]
[419721803,1775334650680,-150.0,0.00015699,2]
[419721804,1775334650690,-150.0,0.00015699,2]
[419721805,1775334650699,-153.19744013,0.00015699,2]
[419721806,1775334650709,-256.52934675,0.00015699,2]
[419721807,1775334650718,-150.0,0.00015699,2]
[419721808,1775334650729,-153.96487141,0.00015699,2]
[419721809,1775334650739,-245.82237456,0.00015699,2]
[419721810,1775334650749,-296.71799963,0.00015699,2]
[419721811,1775334650758,-158.80277884,0.00015699,2]
[419721812,1775334650768,-150.0,0.00015699,2]
[419721813,1775334650778,-150.0,0.00015699,2]
[419721814,1775334650788,-150.0,0.00015699,2]
[419721815,1775334650798,-2000.0,0.00015701,2]
[419721816,1775334650808,-415.31553778,0.00015719,2]
[419721817,1775334650817,-520.83,0.00015719,2]
[419721818,1775334650826,-722.32,0.00015719,2]
[419721819,1775334650836,-722.32,0.00015719,2]
[419721820,1775334650848,-722.32,0.00015719,2]
[419721821,1775334650858,-722.32,0.00015719,2]
[419721822,1775334650868,-722.48197381,0.00015719,2]
[419721823,1775334650877,-500.0,0.00015719,2]
[419721824,1775334650887,-167092.64790541,0.0001572,2]
[419721825,1775334650897,-200.0,0.0001572,2]
[419721826,1775334650908,-151.0,0.0001572,2]
[419721827,1775334650918,-151.0,0.0001572,2]
[419721828,1775334650928,-151.0,0.0001572,2]
[419721829,1775334650937,-278.927616,0.0001572,2]
[419721830,1775334650946,-151.0,0.0001572,2]
[419721831,1775334650955,-185.202732,0.0001572,2]
[419721832,1775334650965,-151.0,0.0001572,2]
[419721833,1775334650974,-185.202732,0.0001572,2]
[419721834,1775334650983,-185.202732,0.0001572,2]
[419721835,1775334650992,-185.202732,0.0001572,2]
[419721836,1775334651001,-1523.365646,0.0001572,2]
[419721837,1775334651010,-1523.365646,0.0001572,2]
[419721838,1775334651020,-1523.365646,0.0001572,2]
[419721839,1775334651030,-1523.365646,0.0001572,2]
[419721840,1775334651039,-959.468694,0.0001572,2]
[419721841,1775334651049,-959.468694,0.0001572,2]
[419721842,1775334651059,-959.468694,0.0001572,2]
[419721843,1775334651068,-959.468694,0.0001572,2]
[419721844,1775334651078,-1128.948676,0.0001572,2]
[419721845,1775334651090,-1889.06906,0.0001572,2]
[419721846,1775334651100,-1128.948676,0.0001572,2]
[419721847,1775334651110,-1889.06906,0.0001572,2]
[419721848,1775334651120,-1128.948676,0.0001572,2]
[419721849,1775334651129,-1889.06906,0.0001572,2]
[419721850,1775334651137,-1128.948676,0.0001572,2]
[419721851,1775334651147,-1889.06906,0.0001572,2]
[419721852,1775334651156,-200.0,0.0001572,2]
[419721853,1775334651167,-587.0,0.0001575,2]
[419721854,1775334651176,-245.407609,0.00015753,2]
[419721855,1775334651186,-168.0,0.00015754,2]
[419721856,1775334651198,-1572.0,0.000158,2]
[419721857,1775334651208,-2000.0,0.00015801,2]
[419721858,1775334651218,-150.0,0.00015803,2]
[419721859,1775334651227,-200.0,0.00015803,2]
[419721860,1775334651236,-150.0,0.00015803,2]
[419721861,1775334651245,-150.0,0.00015803,2]
[419721862,1775334651256,-1137.88846386,0.00015814,2]
[419721863,1775334651266,-1088.82150947,0.00015814,2]
[419721864,1775334651275,-1054.84174324,0.00015814,2]
[419721865,1775334651284,-1053.59969418,0.00015814,2]
[419721866,1775334651294,-1049.5893234,0.00015814,2]
[419721867,1775334651303,-1102.650579,0.00015814,2]
[419721868,1775334651312,-1070.83639198,0.00015814,2]
[419721869,1775334651322,-1148.30823518,0.00015814,2]
[419721870,1775334651331,-168.0,0.0001582,2]
[419721871,1775334651342,-178.20241551,0.00015822,2]
[419721872,1775334651351,-275.78442605,0.00015822,2]
[419721873,1775334651361,-2304.0,0.00015831,2]
[419721874,1775334651370,-2351.0,0.00015849,2]
[419721875,1775334651380,-168.0,0.00015857,2]
[419721876,1775334651391,-241.0,0.00015862,2]
[419721877,1775334651402,-200.0,0.00015877,2]
[419721878,1775334651413,-2304.0,0.0001588,2]
[419721879,1775334651422,-500.0,0.0001589,2]
[419721880,1775334651432,-519.17533645,0.0001589,2]
[419721881,1775334651441,-2000.0,0.0001589,2]
[419721882,1775334651451,-2500.0,0.0001589,2]
[419721883,1775334651461,-504.16690782,0.0001589,2]
[419721884,1775334651470,-2500.0,0.0001589,2]
[419721885,1775334651479,-4000.0,0.00015895,2]
[419721886,1775334651488,-666.0,0.00015899,2]
[419721887,1775334651497,-520.83,0.00015899,2]
[419721888,1775334651506,-500.0,0.00015899,2]
[419721889,1775334651516,-604.90515633,0.000159,2]
[419721890,1775334651525,-203.51997344,0.000159,2]
[419721891,1775334651535,-706.13999004,0.000159,2]
[419721892,1775334651544,-156.39703094,0.000159,2]
[419721893,1775334651553,-4773.1139435,0.000159,2]
[419721894,1775334651562,-412.22409135,0.000159,2]
[419721895,1775334651573,-8092.03795977,0.000159,2]
[419721896,1775334651582,-2000.0,0.00015901,2]
[419721897,1775334651591,-2004.34724751,0.00015912,2]
[419721898,1775334651601,-3000.0,0.00015912,2]
[419721899,1775334651611,-2000.0,0.00015915,2]
[419721900,1775334651621,-241.0,0.00015922,2]
[419721901,1775334651631,-158.0,0.00015927,2]
[419721902,1775334651640,-165.75667485,0.00015984,2]
[419721903,1775334651650,-731.89333735,0.00015989,2]
[419721904,1775334651660,-2304.0,0.00015994,2]
[419721905,1775334651669,-151.0,0.00015997,2]
[419721906,1775334651680,-666.0,0.00015999,2]
[419721907,1775334651689,-155.0,0.00015999,2]
[419721908,1775334651699,-520.83,0.00015999,2]
[419721909,1775334651709,-520.83,0.00015999,2]
[419721910,1775334651720,-520.83,0.00015999,2]
[419721911,1775334651730,-520.83,0.00015999,2]
[419721912,1775334651741,-520.91,0.00015999,2]
[419721913,1775334651751,-640.59083974,0.00015999,2]
[419721914,1775334651760,-283.0,0.00016,2]
[419721915,1775334651769,-5440974.53520096,0.00016,2]
[419721916,1775334651784,-492.65507974,0.00016,2]
[419721917,1775334651851,-3196.62619626,0.00016,2]
[419721918,1775334651955,-396189.57968047,0.00016,2]
[419721919,1775334651966,-38403.48642795,0.00016,2]
[419721920,1775334651978,-1803.37643582,0.00016,2]
[419721921,1775334652007,-499727.42695621,0.00016,2]
[419721922,1775334652020,-987.61314542,0.00016,2]
[419721923,1775334652033,-2170.86881757,0.00016,2]
[419721924,1775334652824,-4510.93270545,0.00016,2]
[419721932,1775335831489,-340.0,0.00012678,2]
[419721933,1775335831498,-483.641,0.00012678,2]
[419721934,1775335831633,-163.089,0.00012678,2]
[419721935,1775335831643,-559.50495218,0.00012725,2]
[419721936,1775335831736,-940.49504782,0.00012725,2]
[419721937,1775335831745,-487.92889157,0.00012867,2]
[419721938,1775335831755,-500.0,0.00012873,2]
[419721939,1775335831765,-500.0,0.00012873,2]
[419721940,1775335831774,-500.0,0.00012873,2]
[419721941,1775335831784,-1200.0,0.00012876,2]
[419721942,1775335831793,-76383.00728073,0.00012877,2]
[419721945,1775335837608,-500.0,0.00012876,2]
[419721946,1775335837920,-413.04925986,0.00012876,2]
[419721947,1775335837932,-110.60222374,0.00012876,2]
[419721948,1775335837942,-500.0,0.00012876,2]
[419721949,1775335837951,-500.0,0.00012876,2]
[419721950,1775335837961,-268.38739383,0.00012876,2]
[419721951,1775335837970,-500.0,0.00012876,2]
[419721952,1775335837980,-552.76869217,0.00012876,2]
[419721953,1775335837989,-500.0,0.00012876,2]
[419721954,1775335837998,-319.17013709,0.00012876,2]
[419721955,1775335838008,-500.0,0.00012876,2]
[419721956,1775335838017,-333.01430714,0.00012876,2]
[419721957,1775335838027,-500.0,0.00012876,2]
[419721958,1775335838036,-146.8081447,0.00012876,2]
[419721959,1775335838071,-336.64042432,0.00012876,2]
[419721960,1775335838095,-16.55143098,0.00012876,2]
[419721961,1775335838105,-250.0,0.00012876,2]
[419721962,1775335838114,-500.0,0.00012876,2]
[419721963,1775335838124,-2423616.99271927,0.00012877,2]
[419721964,1775335838134,-487.92889157,0.00012963,2]
[419721965,1775335838145,-500.0,0.00012973,2]
[419721966,1775335838155,-500.0,0.00012973,2]
[419721967,1775335838164,-500.0,0.00012973,2]
[419721968,1775335838174,-1500000.0,0.00012973,2]
[419721969,1775335838183,-150.0,0.00012976,2]
[419721970,1775335838193,-273.4396,0.00012977,2]
[419721971,1775335838202,-3474.3649,0.00012977,2]
[419721972,1775335838212,-1215.8335,0.00012977,2]
[419721973,1775335838221,-156.39703094,0.00012977,2]
[419721974,1775335838231,-348.86662288,0.00012977,2]
[419721975,1775335838240,-18992.18007819,0.00012977,2]
[419721976,1775335838250,-23220.59307939,0.00012977,2]
[419721977,1775335838259,-412.22409137,0.00012977,2]
[419721978,1775335838269,-250.0,0.00013,2]
[419721979,1775335838279,-2155.0,0.00013,2]
[419721980,1775335838288,-259.10852384,0.00013,2]
[419721982,1775335838297,-7351.94,0.00013073,2]
[419721984,1775335838307,-1266.82,0.00013073,2]
[419721986,1775335838316,-9999.99,0.00013073,2]
[419721988,1775335838326,-9277.79,0.00013073,2]
[419721990,1775335838335,-4999.99,0.00013073,2]
[419721992,1775335838345,-999.99,0.00013073,2]
[419721994,1775335838354,-150.99,0.00013073,2]
[419721996,1775335838363,-299.99,0.00013073,2]
[419721998,1775335838373,-500.0,0.00013073,2]
[419722000,1775335838382,-500.0,0.00013073,2]
[419722002,1775335838391,-178.117,0.00013073,2]
[419722004,1775335838401,-3657.207,0.00013073,2]
[419722006,1775335838410,-1000.0,0.00013077,2]
[419722008,1775335838419,-515.0,0.00013111,2]
[419722010,1775335838428,-18992.18007814,0.00013302,2]
[419722012,1775335838438,-23220.59307934,0.00013302,2]
[419722015,1775335838448,-1979.71839249,0.000134,2]
[419722016,1775335838458,-1000.0,0.00013421,2]
[419722019,1775335838467,-1000.0,0.00013421,2]
[419722021,1775335838477,-1000.0,0.00013421,2]